Workbook

Sheet Financial Report
B2: ANNUAL FINANCIAL REPORT | K2: 2012
B3: YOUR COMPANY NAME
B5: KEY METRICS
B7: =Calculations!B8 -> REVENUES | D7: =Calculations!B9 -> OPERATING PROFIT | F7: =Calculations!B10 -> INTEREST | H7: =Calculations!B11 -> DEPRECIATION | J7: =Calculations!B12 -> NET PROFIT
B8: =IFERROR(Calculations!G8,"") -> $180,584 | D8: =IFERROR(Calculations!G9,"") -> $73,426 | F8: =IFERROR(Calculations!G10,"") -> $3,789 | H8: =IFERROR(Calculations!G11,"") -> $5,547 | J8: =IFERROR(Calculations!G12,"") -> $67,475
B9: =Calculations!H8 -> 0% | D9: =Calculations!H9 -> -5% | F9: =Calculations!H10 -> 14% | H9: =Calculations!H11 -> 9% | J9: =Calculations!H12 -> 2%
B13: ALL METRICS
B15: METRIC | D15: ="THIS YEAR ("&SelectedYear&")" -> THIS YEAR (2012) | F15: ="LAST YEAR ("&SelectedYear-1&")" -> LAST YEAR (2011) | H15: % CHANGE | I15: 5 YEAR TREND
B16: =Calculations!B15 -> REVENUES | D16: =IF($B16="","",Calculations!G15) -> $180,583.88 | F16: =IF($B16="","",Calculations!F15) -> $180,026.64 | H16: =IFERROR(D16/F16-1,"") -> 0%
B17: =Calculations!B16 -> OPERATING EXPENSES | D17: =IF($B17="","",Calculations!G16) -> $94,419.46 | F17: =IF($B17="","",Calculations!F16) -> $80,883.33 | H17: 17%
B18: =Calculations!B17 -> OPERATING PROFIT | D18: =IF($B18="","",Calculations!G17) -> $73,426.00 | F18: =IF($B18="","",Calculations!F17) -> $77,317.84 | H18: -5%
B19: =Calculations!B18 -> DEPRECIATION | D19: =IF($B19="","",Calculations!G18) -> $5,546.89 | F19: =IF($B19="","",Calculations!F18) -> $5,068.42 | H19: 9%
B20: =Calculations!B19 -> INTEREST | D20: =IF($B20="","",Calculations!G19) -> $3,789.47 | F20: =IF($B20="","",Calculations!F19) -> $3,338.31 | H20: 14%
B21: =Calculations!B20 -> NET PROFIT | D21: =IF($B21="","",Calculations!G20) -> $67,474.86 | F21: =IF($B21="","",Calculations!F20) -> $66,272.10 | H21: 2%
B22: =Calculations!B21 -> TAX | D22: =IF($B22="","",Calculations!G21) -> $31,408.26 | F22: =IF($B22="","",Calculations!F21) -> $29,424.53 | H22: 7%
B23: =Calculations!B22 -> PROFIT AFTER TAX | D23: =IF($B23="","",Calculations!G22) -> $50,247.68 | F23: =IF($B23="","",Calculations!F22) -> $42,438.20 | H23: 18%
B24: =Calculations!B23 -> METRIC 1 | D24: =IF($B24="","",Calculations!G23) -> $19.96 | F24: =IF($B24="","",Calculations!F23) -> $16.79 | H24: 19%
B25: =Calculations!B24 -> METRIC 2 | D25: =IF($B25="","",Calculations!G24) -> $26.02 | F25: =IF($B25="","",Calculations!F24) -> $21.84 | H25: 19%
B26: =Calculations!B25 -> METRIC 3 | D26: =IF($B26="","",Calculations!G25) -> $31.09 | F26: =IF($B26="","",Calculations!F25) -> $26.40 | H26: 18%
B27: =Calculations!B26 -> METRIC 4 | D27: =IF($B27="","",Calculations!G26) -> $14.92 | F27: =IF($B27="","",Calculations!F26) -> $14.59 | H27: 2%
B28: =Calculations!B27 -> METRIC 5 | D28: =IF($B28="","",Calculations!G27) -> $1.04 | F28: =IF($B28="","",Calculations!F27) -> $1.00 | H28: 3%
B29: =Calculations!B28 -> METRIC 6 | D29: =IF($B29="","",Calculations!G28) -> $0.34 | F29: =IF($B29="","",Calculations!F28) -> $0.31 | H29: 12%
B30: =Calculations!B29 ->  | D30: =IF($B30="","",Calculations!G29) ->  | E30: =IF($B30="","",Calculations!F29) ->  | H30: =IFERROR(D30/E30-1,"") -> 
B31: =Calculations!B30 ->  | D31: =IF($B31="","",Calculations!G30) ->  | E31: =IF($B31="","",Calculations!F30) -> 
B32: =Calculations!B31 ->  | D32: =IF($B32="","",Calculations!G31) ->  | E32: =IF($B32="","",Calculations!F31) -> 
B33: =Calculations!B32 ->  | D33: =IF($B33="","",Calculations!G32) ->  | E33: =IF($B33="","",Calculations!F32) -> 
B34: =Calculations!B33 ->  | D34: =IF($B34="","",Calculations!G33) ->  | E34: =IF($B34="","",Calculations!F33) -> 
B35: =Calculations!B34 ->  | D35: =IF($B35="","",Calculations!G34) ->  | E35: =IF($B35="","",Calculations!F34) -> 
B36: =Calculations!B35 ->  | D36: =IF($B36="","",Calculations!G35) ->  | E36: =IF($B36="","",Calculations!F35) -> 
B37: =Calculations!B36 ->  | D37: =IF($B37="","",Calculations!G36) ->  | E37: =IF($B37="","",Calculations!F36) -> 
B38: =Calculations!B37 ->  | D38: =IF($B38="","",Calculations!G37) ->  | E38: =IF($B38="","",Calculations!F37) -> 
B39: =Calculations!B38 ->  | D39: =IF($B39="","",Calculations!G38) ->  | E39: =IF($B39="","",Calculations!F38) -> 
B40: =Calculations!B39 ->  | D40: =IF($B40="","",Calculations!G39) ->  | E40: =IF($B40="","",Calculations!F39) -> 

Sheet Financial Data Input
B2: INPUT YOUR FINANCIAL DATA
B3: YOU CAN DEFINE UP TO 25 KEY METRICS
B5: METRIC NAME | C5: 2006 | D5: 2007 | E5: 2008 | F5: 2009 | G5: 2010 | H5: 2011 | I5: 2012
B6: REVENUES | C6: $125,000.00 | D6: $134,137.45 | E6: $142,728.38 | F6: $150,687.47 | G6: $165,044.56 | H6: $180,026.64 | I6: $180,583.88
B7: OPERATING EXPENSES | C7: $65,000.00 | D7: $70,962.31 | E7: $75,924.87 | F7: $78,901.28 | G7: $81,674.37 | H7: $80,883.33 | I7: $94,419.46
B8: OPERATING PROFIT | C8: $60,000.00 | D8: $64,207.30 | E8: $68,857.69 | F8: $75,643.26 | G8: $76,755.26 | H8: $77,317.84 | I8: $73,426.00
B9: DEPRECIATION | C9: $4,500.00 | D9: $4,517.77 | E9: $4,656.92 | F9: $4,974.21 | G9: $5,024.11 | H9: $5,068.42 | I9: $5,546.89
B10: INTEREST | C10: $2,500.00 | D10: $2,745.82 | E10: $2,893.11 | F10: $3,136.13 | G10: $3,148.53 | H10: $3,338.31 | I10: $3,789.47
B11: NET PROFIT | C11: $54,000.00 | D11: $54,761.08 | E11: $55,860.82 | F11: $59,747.96 | G11: $61,483.59 | H11: $66,272.10 | I11: $67,474.86
B12: TAX | C12: $22,000.00 | D12: $23,920.55 | E12: $25,576.74 | F12: $27,498.86 | G12: $28,335.68 | H12: $29,424.53 | I12: $31,408.26
B13: PROFIT AFTER TAX | C13: $32,000.00 | D13: $34,943.49 | E13: $38,418.53 | F13: $39,895.05 | G13: $40,607.74 | H13: $42,438.20 | I13: $50,247.68
B14: METRIC 1 | C14: $12.80 | D14: $12.81 | E14: $13.78 | F14: $14.29 | G14: $15.58 | H14: $16.79 | I14: $19.96
B15: METRIC 2 | C15: $18.20 | D15: $18.59 | E15: $19.22 | F15: $20.17 | G15: $20.48 | H15: $21.84 | I15: $26.02
B16: METRIC 3 | C16: $19.10 | D16: $20.56 | E16: $21.87 | F16: $23.19 | G16: $24.68 | H16: $26.40 | I16: $31.09
B17: METRIC 4 | C17: $12.10 | D17: $12.22 | E17: $12.59 | F17: $13.71 | G17: $13.76 | H17: $14.59 | I17: $14.92
B18: METRIC 5 | C18: $0.75 | D18: $0.79 | E18: $0.85 | F18: $0.89 | G18: $0.92 | H18: $1.00 | I18: $1.04
B19: METRIC 6 | C19: $0.23 | D19: $0.25 | E19: $0.27 | F19: $0.28 | G19: $0.30 | H19: $0.31 | I19: $0.34

Sheet Key Metric Settings
B2: DEFINE KEY METRICS HERE
B3: YOU CAN SHOW UP TO 5 KEY METRICS AT THE TOP OF THE REPORT
B5: 1 | C5: REVENUES | D5: =IF(ISBLANK(C5),"← Please select a value from drop-down",IF(COUNTIF($C$5:C5,C5)>1,"You have selected "&C5&" twice.","")) -> 
B6: 2 | C6: OPERATING PROFIT | D6: =IF(ISBLANK(C6),"← Please select a value from drop-down",IF(COUNTIF($C$5:C6,C6)>1,"You have selected "&C6&" twice.","")) -> 
B7: 3 | C7: INTEREST | D7: =IF(ISBLANK(C7),"← Please select a value from drop-down",IF(COUNTIF($C$5:C7,C7)>1,"You have selected "&C7&" twice.","")) -> 
B8: 4 | C8: DEPRECIATION | D8: =IF(ISBLANK(C8),"← Please select a value from drop-down",IF(COUNTIF($C$5:C8,C8)>1,"You have selected "&C8&" twice.","")) -> 
B9: 5 | C9: NET PROFIT | D9: =IF(ISBLANK(C9),"← Please select a value from drop-down",IF(COUNTIF($C$5:C9,C9)>1,"You have selected "&C9&" twice.","")) -> 

Sheet Calculations (hidden)
A1: This worksheet is used for the Financial Report calculations and should remain hidden.
D2: Position
B3: This year | C3: =SelectedYear -> 2012 | D3: =MATCH(C3,lstYears,0)+1 -> 8
B4: Previous Year | C4: =C3-1 -> 2011 | D4: =MATCH(C4,lstYears,0)+1 -> 7
B6: Position | C6: =MATCH(C7,lstYears,0)+1 -> 4 | D6: =MATCH(D7,lstYears,0)+1 -> 5 | E6: =MATCH(E7,lstYears,0)+1 -> 6 | F6: =MATCH(F7,lstYears,0)+1 -> 7 | G6: =MATCH(G7,lstYears,0)+1 -> 8
B7: Key Metrics | C7: =D7-1 -> 2008 | D7: =E7-1 -> 2009 | E7: =F7-1 -> 2010 | F7: =G7-1 -> 2011 | G7: =C3 -> 2012
A8: =MATCH(B8,'Financial Data Input'!$B$6:$B$20,0) -> 1 | B8: =IF('Key Metric Settings'!C5="","",'Key Metric Settings'!C5) -> REVENUES | C8: =IFERROR(INDEX('Financial Data Input'!$B$6:$I$20,$A8,C$6),NA()) -> 142728.3843 | D8: =IFERROR(INDEX('Financial Data Input'!$B$6:$I$20,$A8,D$6),NA()) -> 150687.4651 | E8: =IFERROR(INDEX('Financial Data Input'!$B$6:$I$20,$A8,E$6),NA()) -> 165044.5611 | F8: =IFERROR(INDEX('Financial Data Input'!$B$6:$I$20,$A8,F$6),NA()) -> 180026.6391 | G8: =IFERROR(INDEX('Financial Data Input'!$B$6:$I$20,$A8,G$6),NA()) -> 180583.8848 | H8: =IFERROR(G8/F8-1,"") -> 0%
A9: =MATCH(B9,'Financial Data Input'!$B$6:$B$20,0) -> 3 | B9: =IF('Key Metric Settings'!C6="","",'Key Metric Settings'!C6) -> OPERATING PROFIT | C9: =IFERROR(INDEX('Financial Data Input'!$B$6:$I$20,$A9,C$6),NA()) -> 68857.69054 | D9: =IFERROR(INDEX('Financial Data Input'!$B$6:$I$20,$A9,D$6),NA()) -> 75643.25521 | E9: =IFERROR(INDEX('Financial Data Input'!$B$6:$I$20,$A9,E$6),NA()) -> 76755.26153 | F9: =IFERROR(INDEX('Financial Data Input'!$B$6:$I$20,$A9,F$6),NA()) -> 77317.83649 | G9: =IFERROR(INDEX('Financial Data Input'!$B$6:$I$20,$A9,G$6),NA()) -> 73425.99598 | H9: =IFERROR(G9/F9-1,"") -> -5%
A10: =MATCH(B10,'Financial Data Input'!$B$6:$B$20,0) -> 5 | B10: =IF('Key Metric Settings'!C7="","",'Key Metric Settings'!C7) -> INTEREST | C10: =IFERROR(INDEX('Financial Data Input'!$B$6:$I$20,$A10,C$6),NA()) -> 2893.112497 | D10: =IFERROR(INDEX('Financial Data Input'!$B$6:$I$20,$A10,D$6),NA()) -> 3136.128229 | E10: =IFERROR(INDEX('Financial Data Input'!$B$6:$I$20,$A10,E$6),NA()) -> 3148.530137 | F10: =IFERROR(INDEX('Financial Data Input'!$B$6:$I$20,$A10,F$6),NA()) -> 3338.30743 | G10: =IFERROR(INDEX('Financial Data Input'!$B$6:$I$20,$A10,G$6),NA()) -> 3789.473391 | H10: 14%
A11: =MATCH(B11,'Financial Data Input'!$B$6:$B$20,0) -> 4 | B11: =IF('Key Metric Settings'!C8="","",'Key Metric Settings'!C8) -> DEPRECIATION | C11: =IFERROR(INDEX('Financial Data Input'!$B$6:$I$20,$A11,C$6),NA()) -> 4656.924614 | D11: =IFERROR(INDEX('Financial Data Input'!$B$6:$I$20,$A11,D$6),NA()) -> 4974.211637 | E11: =IFERROR(INDEX('Financial Data Input'!$B$6:$I$20,$A11,E$6),NA()) -> 5024.111162 | F11: =IFERROR(INDEX('Financial Data Input'!$B$6:$I$20,$A11,F$6),NA()) -> 5068.423486 | G11: =IFERROR(INDEX('Financial Data Input'!$B$6:$I$20,$A11,G$6),NA()) -> 5546.885548 | H11: 9%
A12: =MATCH(B12,'Financial Data Input'!$B$6:$B$20,0) -> 6 | B12: =IF('Key Metric Settings'!C9="","",'Key Metric Settings'!C9) -> NET PROFIT | C12: =IFERROR(INDEX('Financial Data Input'!$B$6:$I$20,$A12,C$6),NA()) -> 55860.81619 | D12: =IFERROR(INDEX('Financial Data Input'!$B$6:$I$20,$A12,D$6),NA()) -> 59747.95829 | E12: =IFERROR(INDEX('Financial Data Input'!$B$6:$I$20,$A12,E$6),NA()) -> 61483.59354 | F12: =IFERROR(INDEX('Financial Data Input'!$B$6:$I$20,$A12,F$6),NA()) -> 66272.10184 | G12: =IFERROR(INDEX('Financial Data Input'!$B$6:$I$20,$A12,G$6),NA()) -> 67474.85858 | H12: 2%
B14: All Metrics (works up to 25 metrics)
A15: =ROWS($B$15:B15) -> 1 | B15: =IF('Financial Data Input'!B6=0,"",'Financial Data Input'!B6) -> REVENUES | C15: =IF(B15="",NA(),IFERROR(INDEX('Financial Data Input'!$B$6:$I$30,$A15,C$6),NA())) -> 142728.3843 | D15: =IF(B15="",NA(),IFERROR(INDEX('Financial Data Input'!$B$6:$I$30,$A15,D$6),NA())) -> 150687.4651 | E15: =IF(B15="",NA(),IFERROR(INDEX('Financial Data Input'!$B$6:$I$30,$A15,E$6),NA())) -> 165044.5611 | F15: =IF(B15="",NA(),IFERROR(INDEX('Financial Data Input'!$B$6:$I$30,$A15,F$6),NA())) -> 180026.6391 | G15: =IF(B15="",NA(),IFERROR(INDEX('Financial Data Input'!$B$6:$I$30,$A15,G$6),NA())) -> 180583.8848
A16: =ROWS($B$15:B16) -> 2 | B16: =IF('Financial Data Input'!B7=0,"",'Financial Data Input'!B7) -> OPERATING EXPENSES | C16: =IF(B16="",NA(),IFERROR(INDEX('Financial Data Input'!$B$6:$I$30,$A16,C$6),NA())) -> 75924.8656 | D16: =IF(B16="",NA(),IFERROR(INDEX('Financial Data Input'!$B$6:$I$30,$A16,D$6),NA())) -> 78901.27844 | E16: =IF(B16="",NA(),IFERROR(INDEX('Financial Data Input'!$B$6:$I$30,$A16,E$6),NA())) -> 81674.37147 | F16: =IF(B16="",NA(),IFERROR(INDEX('Financial Data Input'!$B$6:$I$30,$A16,F$6),NA())) -> 80883.33095 | G16: =IF(B16="",NA(),IFERROR(INDEX('Financial Data Input'!$B$6:$I$30,$A16,G$6),NA())) -> 94419.45803
A17: =ROWS($B$15:B17) -> 3 | B17: =IF('Financial Data Input'!B8=0,"",'Financial Data Input'!B8) -> OPERATING PROFIT | C17: =IF(B17="",NA(),IFERROR(INDEX('Financial Data Input'!$B$6:$I$30,$A17,C$6),NA())) -> 68857.69054 | D17: =IF(B17="",NA(),IFERROR(INDEX('Financial Data Input'!$B$6:$I$30,$A17,D$6),NA())) -> 75643.25521 | E17: =IF(B17="",NA(),IFERROR(INDEX('Financial Data Input'!$B$6:$I$30,$A17,E$6),NA())) -> 76755.26153 | F17: =IF(B17="",NA(),IFERROR(INDEX('Financial Data Input'!$B$6:$I$30,$A17,F$6),NA())) -> 77317.83649 | G17: =IF(B17="",NA(),IFERROR(INDEX('Financial Data Input'!$B$6:$I$30,$A17,G$6),NA())) -> 73425.99598
A18: =ROWS($B$15:B18) -> 4 | B18: =IF('Financial Data Input'!B9=0,"",'Financial Data Input'!B9) -> DEPRECIATION | C18: =IF(B18="",NA(),IFERROR(INDEX('Financial Data Input'!$B$6:$I$30,$A18,C$6),NA())) -> 4656.924614 | D18: =IF(B18="",NA(),IFERROR(INDEX('Financial Data Input'!$B$6:$I$30,$A18,D$6),NA())) -> 4974.211637 | E18: =IF(B18="",NA(),IFERROR(INDEX('Financial Data Input'!$B$6:$I$30,$A18,E$6),NA())) -> 5024.111162 | F18: =IF(B18="",NA(),IFERROR(INDEX('Financial Data Input'!$B$6:$I$30,$A18,F$6),NA())) -> 5068.423486 | G18: =IF(B18="",NA(),IFERROR(INDEX('Financial Data Input'!$B$6:$I$30,$A18,G$6),NA())) -> 5546.885548
A19: =ROWS($B$15:B19) -> 5 | B19: =IF('Financial Data Input'!B10=0,"",'Financial Data Input'!B10) -> INTEREST | C19: =IF(B19="",NA(),IFERROR(INDEX('Financial Data Input'!$B$6:$I$30,$A19,C$6),NA())) -> 2893.112497 | D19: =IF(B19="",NA(),IFERROR(INDEX('Financial Data Input'!$B$6:$I$30,$A19,D$6),NA())) -> 3136.128229 | E19: =IF(B19="",NA(),IFERROR(INDEX('Financial Data Input'!$B$6:$I$30,$A19,E$6),NA())) -> 3148.530137 | F19: =IF(B19="",NA(),IFERROR(INDEX('Financial Data Input'!$B$6:$I$30,$A19,F$6),NA())) -> 3338.30743 | G19: =IF(B19="",NA(),IFERROR(INDEX('Financial Data Input'!$B$6:$I$30,$A19,G$6),NA())) -> 3789.473391
A20: =ROWS($B$15:B20) -> 6 | B20: =IF('Financial Data Input'!B11=0,"",'Financial Data Input'!B11) -> NET PROFIT | C20: =IF(B20="",NA(),IFERROR(INDEX('Financial Data Input'!$B$6:$I$30,$A20,C$6),NA())) -> 55860.81619 | D20: =IF(B20="",NA(),IFERROR(INDEX('Financial Data Input'!$B$6:$I$30,$A20,D$6),NA())) -> 59747.95829 | E20: =IF(B20="",NA(),IFERROR(INDEX('Financial Data Input'!$B$6:$I$30,$A20,E$6),NA())) -> 61483.59354 | F20: =IF(B20="",NA(),IFERROR(INDEX('Financial Data Input'!$B$6:$I$30,$A20,F$6),NA())) -> 66272.10184 | G20: =IF(B20="",NA(),IFERROR(INDEX('Financial Data Input'!$B$6:$I$30,$A20,G$6),NA())) -> 67474.85858
A21: =ROWS($B$15:B21) -> 7 | B21: =IF('Financial Data Input'!B12=0,"",'Financial Data Input'!B12) -> TAX | C21: =IF(B21="",NA(),IFERROR(INDEX('Financial Data Input'!$B$6:$I$30,$A21,C$6),NA())) -> 25576.74126 | D21: =IF(B21="",NA(),IFERROR(INDEX('Financial Data Input'!$B$6:$I$30,$A21,D$6),NA())) -> 27498.86192 | E21: =IF(B21="",NA(),IFERROR(INDEX('Financial Data Input'!$B$6:$I$30,$A21,E$6),NA())) -> 28335.67578 | F21: =IF(B21="",NA(),IFERROR(INDEX('Financial Data Input'!$B$6:$I$30,$A21,F$6),NA())) -> 29424.53193 | G21: =IF(B21="",NA(),IFERROR(INDEX('Financial Data Input'!$B$6:$I$30,$A21,G$6),NA())) -> 31408.25564
A22: =ROWS($B$15:B22) -> 8 | B22: =IF('Financial Data Input'!B13=0,"",'Financial Data Input'!B13) -> PROFIT AFTER TAX | C22: =IF(B22="",NA(),IFERROR(INDEX('Financial Data Input'!$B$6:$I$30,$A22,C$6),NA())) -> 38418.53227 | D22: =IF(B22="",NA(),IFERROR(INDEX('Financial Data Input'!$B$6:$I$30,$A22,D$6),NA())) -> 39895.05306 | E22: =IF(B22="",NA(),IFERROR(INDEX('Financial Data Input'!$B$6:$I$30,$A22,E$6),NA())) -> 40607.73963 | F22: =IF(B22="",NA(),IFERROR(INDEX('Financial Data Input'!$B$6:$I$30,$A22,F$6),NA())) -> 42438.20421 | G22: =IF(B22="",NA(),IFERROR(INDEX('Financial Data Input'!$B$6:$I$30,$A22,G$6),NA())) -> 50247.68427
A23: =ROWS($B$15:B23) -> 9 | B23: =IF('Financial Data Input'!B14=0,"",'Financial Data Input'!B14) -> METRIC 1 | C23: =IF(B23="",NA(),IFERROR(INDEX('Financial Data Input'!$B$6:$I$30,$A23,C$6),NA())) -> 13.78441646 | D23: =IF(B23="",NA(),IFERROR(INDEX('Financial Data Input'!$B$6:$I$30,$A23,D$6),NA())) -> 14.29289323 | E23: =IF(B23="",NA(),IFERROR(INDEX('Financial Data Input'!$B$6:$I$30,$A23,E$6),NA())) -> 15.57801621 | F23: =IF(B23="",NA(),IFERROR(INDEX('Financial Data Input'!$B$6:$I$30,$A23,F$6),NA())) -> 16.7866578 | G23: =IF(B23="",NA(),IFERROR(INDEX('Financial Data Input'!$B$6:$I$30,$A23,G$6),NA())) -> 19.96445621
A24: =ROWS($B$15:B24) -> 10 | B24: =IF('Financial Data Input'!B15=0,"",'Financial Data Input'!B15) -> METRIC 2 | C24: =IF(B24="",NA(),IFERROR(INDEX('Financial Data Input'!$B$6:$I$30,$A24,C$6),NA())) -> 19.22066094 | D24: =IF(B24="",NA(),IFERROR(INDEX('Financial Data Input'!$B$6:$I$30,$A24,D$6),NA())) -> 20.17241937 | E24: =IF(B24="",NA(),IFERROR(INDEX('Financial Data Input'!$B$6:$I$30,$A24,E$6),NA())) -> 20.48417466 | F24: =IF(B24="",NA(),IFERROR(INDEX('Financial Data Input'!$B$6:$I$30,$A24,F$6),NA())) -> 21.84410934 | G24: =IF(B24="",NA(),IFERROR(INDEX('Financial Data Input'!$B$6:$I$30,$A24,G$6),NA())) -> 26.01976421
A25: =ROWS($B$15:B25) -> 11 | B25: =IF('Financial Data Input'!B16=0,"",'Financial Data Input'!B16) -> METRIC 3 | C25: =IF(B25="",NA(),IFERROR(INDEX('Financial Data Input'!$B$6:$I$30,$A25,C$6),NA())) -> 21.87460134 | D25: =IF(B25="",NA(),IFERROR(INDEX('Financial Data Input'!$B$6:$I$30,$A25,D$6),NA())) -> 23.19302955 | E25: =IF(B25="",NA(),IFERROR(INDEX('Financial Data Input'!$B$6:$I$30,$A25,E$6),NA())) -> 24.67640231 | F25: =IF(B25="",NA(),IFERROR(INDEX('Financial Data Input'!$B$6:$I$30,$A25,F$6),NA())) -> 26.39590252 | G25: =IF(B25="",NA(),IFERROR(INDEX('Financial Data Input'!$B$6:$I$30,$A25,G$6),NA())) -> 31.08650754
A26: =ROWS($B$15:B26) -> 12 | B26: =IF('Financial Data Input'!B17=0,"",'Financial Data Input'!B17) -> METRIC 4 | C26: =IF(B26="",NA(),IFERROR(INDEX('Financial Data Input'!$B$6:$I$30,$A26,C$6),NA())) -> 12.59253323 | D26: =IF(B26="",NA(),IFERROR(INDEX('Financial Data Input'!$B$6:$I$30,$A26,D$6),NA())) -> 13.70556664 | E26: =IF(B26="",NA(),IFERROR(INDEX('Financial Data Input'!$B$6:$I$30,$A26,E$6),NA())) -> 13.7621171 | F26: =IF(B26="",NA(),IFERROR(INDEX('Financial Data Input'!$B$6:$I$30,$A26,F$6),NA())) -> 14.59031233 | G26: =IF(B26="",NA(),IFERROR(INDEX('Financial Data Input'!$B$6:$I$30,$A26,G$6),NA())) -> 14.92455666
A27: =ROWS($B$15:B27) -> 13 | B27: =IF('Financial Data Input'!B18=0,"",'Financial Data Input'!B18) -> METRIC 5 | C27: =IF(B27="",NA(),IFERROR(INDEX('Financial Data Input'!$B$6:$I$30,$A27,C$6),NA())) -> 0.8528964777 | D27: =IF(B27="",NA(),IFERROR(INDEX('Financial Data Input'!$B$6:$I$30,$A27,D$6),NA())) -> 0.8918172065 | E27: =IF(B27="",NA(),IFERROR(INDEX('Financial Data Input'!$B$6:$I$30,$A27,E$6),NA())) -> 0.9151184649 | F27: =IF(B27="",NA(),IFERROR(INDEX('Financial Data Input'!$B$6:$I$30,$A27,F$6),NA())) -> 1.002642657 | G27: =IF(B27="",NA(),IFERROR(INDEX('Financial Data Input'!$B$6:$I$30,$A27,G$6),NA())) -> 1.036547114
A28: =ROWS($B$15:B28) -> 14 | B28: =IF('Financial Data Input'!B19=0,"",'Financial Data Input'!B19) -> METRIC 6 | C28: =IF(B28="",NA(),IFERROR(INDEX('Financial Data Input'!$B$6:$I$30,$A28,C$6),NA())) -> 0.273063392 | D28: =IF(B28="",NA(),IFERROR(INDEX('Financial Data Input'!$B$6:$I$30,$A28,D$6),NA())) -> 0.2805922958 | E28: =IF(B28="",NA(),IFERROR(INDEX('Financial Data Input'!$B$6:$I$30,$A28,E$6),NA())) -> 0.2966090719 | F28: =IF(B28="",NA(),IFERROR(INDEX('Financial Data Input'!$B$6:$I$30,$A28,F$6),NA())) -> 0.3086432107 | G28: =IF(B28="",NA(),IFERROR(INDEX('Financial Data Input'!$B$6:$I$30,$A28,G$6),NA())) -> 0.3447776356
A29: =ROWS($B$15:B29) -> 15 | B29: =IF('Financial Data Input'!B20=0,"",'Financial Data Input'!B20) ->  | C29: =IF(B29="",NA(),IFERROR(INDEX('Financial Data Input'!$B$6:$I$30,$A29,C$6),NA())) ->  | D29: =IF(B29="",NA(),IFERROR(INDEX('Financial Data Input'!$B$6:$I$30,$A29,D$6),NA())) ->  | E29: =IF(B29="",NA(),IFERROR(INDEX('Financial Data Input'!$B$6:$I$30,$A29,E$6),NA())) ->  | F29: =IF(B29="",NA(),IFERROR(INDEX('Financial Data Input'!$B$6:$I$30,$A29,F$6),NA())) ->  | G29: =IF(B29="",NA(),IFERROR(INDEX('Financial Data Input'!$B$6:$I$30,$A29,G$6),NA())) -> 
A30: =ROWS($B$15:B30) -> 16 | B30: =IF('Financial Data Input'!B21=0,"",'Financial Data Input'!B21) ->  | C30: =IF(B30="",NA(),IFERROR(INDEX('Financial Data Input'!$B$6:$I$30,$A30,C$6),NA())) ->  | D30: =IF(B30="",NA(),IFERROR(INDEX('Financial Data Input'!$B$6:$I$30,$A30,D$6),NA())) ->  | E30: =IF(B30="",NA(),IFERROR(INDEX('Financial Data Input'!$B$6:$I$30,$A30,E$6),NA())) ->  | F30: =IF(B30="",NA(),IFERROR(INDEX('Financial Data Input'!$B$6:$I$30,$A30,F$6),NA())) ->  | G30: =IF(B30="",NA(),IFERROR(INDEX('Financial Data Input'!$B$6:$I$30,$A30,G$6),NA())) -> 
A31: =ROWS($B$15:B31) -> 17 | B31: =IF('Financial Data Input'!B22=0,"",'Financial Data Input'!B22) ->  | C31: =IF(B31="",NA(),IFERROR(INDEX('Financial Data Input'!$B$6:$I$30,$A31,C$6),NA())) ->  | D31: =IF(B31="",NA(),IFERROR(INDEX('Financial Data Input'!$B$6:$I$30,$A31,D$6),NA())) ->  | E31: =IF(B31="",NA(),IFERROR(INDEX('Financial Data Input'!$B$6:$I$30,$A31,E$6),NA())) ->  | F31: =IF(B31="",NA(),IFERROR(INDEX('Financial Data Input'!$B$6:$I$30,$A31,F$6),NA())) ->  | G31: =IF(B31="",NA(),IFERROR(INDEX('Financial Data Input'!$B$6:$I$30,$A31,G$6),NA())) -> 
A32: =ROWS($B$15:B32) -> 18 | B32: =IF('Financial Data Input'!B23=0,"",'Financial Data Input'!B23) ->  | C32: =IF(B32="",NA(),IFERROR(INDEX('Financial Data Input'!$B$6:$I$30,$A32,C$6),NA())) ->  | D32: =IF(B32="",NA(),IFERROR(INDEX('Financial Data Input'!$B$6:$I$30,$A32,D$6),NA())) ->  | E32: =IF(B32="",NA(),IFERROR(INDEX('Financial Data Input'!$B$6:$I$30,$A32,E$6),NA())) ->  | F32: =IF(B32="",NA(),IFERROR(INDEX('Financial Data Input'!$B$6:$I$30,$A32,F$6),NA())) ->  | G32: =IF(B32="",NA(),IFERROR(INDEX('Financial Data Input'!$B$6:$I$30,$A32,G$6),NA())) -> 
A33: =ROWS($B$15:B33) -> 19 | B33: =IF('Financial Data Input'!B24=0,"",'Financial Data Input'!B24) ->  | C33: =IF(B33="",NA(),IFERROR(INDEX('Financial Data Input'!$B$6:$I$30,$A33,C$6),NA())) ->  | D33: =IF(B33="",NA(),IFERROR(INDEX('Financial Data Input'!$B$6:$I$30,$A33,D$6),NA())) ->  | E33: =IF(B33="",NA(),IFERROR(INDEX('Financial Data Input'!$B$6:$I$30,$A33,E$6),NA())) ->  | F33: =IF(B33="",NA(),IFERROR(INDEX('Financial Data Input'!$B$6:$I$30,$A33,F$6),NA())) ->  | G33: =IF(B33="",NA(),IFERROR(INDEX('Financial Data Input'!$B$6:$I$30,$A33,G$6),NA())) -> 
A34: =ROWS($B$15:B34) -> 20 | B34: =IF('Financial Data Input'!B25=0,"",'Financial Data Input'!B25) ->  | C34: =IF(B34="",NA(),IFERROR(INDEX('Financial Data Input'!$B$6:$I$30,$A34,C$6),NA())) ->  | D34: =IF(B34="",NA(),IFERROR(INDEX('Financial Data Input'!$B$6:$I$30,$A34,D$6),NA())) ->  | E34: =IF(B34="",NA(),IFERROR(INDEX('Financial Data Input'!$B$6:$I$30,$A34,E$6),NA())) ->  | F34: =IF(B34="",NA(),IFERROR(INDEX('Financial Data Input'!$B$6:$I$30,$A34,F$6),NA())) ->  | G34: =IF(B34="",NA(),IFERROR(INDEX('Financial Data Input'!$B$6:$I$30,$A34,G$6),NA())) -> 
A35: =ROWS($B$15:B35) -> 21 | B35: =IF('Financial Data Input'!B26=0,"",'Financial Data Input'!B26) ->  | C35: =IF(B35="",NA(),IFERROR(INDEX('Financial Data Input'!$B$6:$I$30,$A35,C$6),NA())) ->  | D35: =IF(B35="",NA(),IFERROR(INDEX('Financial Data Input'!$B$6:$I$30,$A35,D$6),NA())) ->  | E35: =IF(B35="",NA(),IFERROR(INDEX('Financial Data Input'!$B$6:$I$30,$A35,E$6),NA())) ->  | F35: =IF(B35="",NA(),IFERROR(INDEX('Financial Data Input'!$B$6:$I$30,$A35,F$6),NA())) ->  | G35: =IF(B35="",NA(),IFERROR(INDEX('Financial Data Input'!$B$6:$I$30,$A35,G$6),NA())) -> 
A36: =ROWS($B$15:B36) -> 22 | B36: =IF('Financial Data Input'!B27=0,"",'Financial Data Input'!B27) ->  | C36: =IF(B36="",NA(),IFERROR(INDEX('Financial Data Input'!$B$6:$I$30,$A36,C$6),NA())) ->  | D36: =IF(B36="",NA(),IFERROR(INDEX('Financial Data Input'!$B$6:$I$30,$A36,D$6),NA())) ->  | E36: =IF(B36="",NA(),IFERROR(INDEX('Financial Data Input'!$B$6:$I$30,$A36,E$6),NA())) ->  | F36: =IF(B36="",NA(),IFERROR(INDEX('Financial Data Input'!$B$6:$I$30,$A36,F$6),NA())) ->  | G36: =IF(B36="",NA(),IFERROR(INDEX('Financial Data Input'!$B$6:$I$30,$A36,G$6),NA())) -> 
A37: =ROWS($B$15:B37) -> 23 | B37: =IF('Financial Data Input'!B28=0,"",'Financial Data Input'!B28) ->  | C37: =IF(B37="",NA(),IFERROR(INDEX('Financial Data Input'!$B$6:$I$30,$A37,C$6),NA())) ->  | D37: =IF(B37="",NA(),IFERROR(INDEX('Financial Data Input'!$B$6:$I$30,$A37,D$6),NA())) ->  | E37: =IF(B37="",NA(),IFERROR(INDEX('Financial Data Input'!$B$6:$I$30,$A37,E$6),NA())) ->  | F37: =IF(B37="",NA(),IFERROR(INDEX('Financial Data Input'!$B$6:$I$30,$A37,F$6),NA())) ->  | G37: =IF(B37="",NA(),IFERROR(INDEX('Financial Data Input'!$B$6:$I$30,$A37,G$6),NA())) -> 
A38: =ROWS($B$15:B38) -> 24 | B38: =IF('Financial Data Input'!B29=0,"",'Financial Data Input'!B29) ->  | C38: =IF(B38="",NA(),IFERROR(INDEX('Financial Data Input'!$B$6:$I$30,$A38,C$6),NA())) ->  | D38: =IF(B38="",NA(),IFERROR(INDEX('Financial Data Input'!$B$6:$I$30,$A38,D$6),NA())) ->  | E38: =IF(B38="",NA(),IFERROR(INDEX('Financial Data Input'!$B$6:$I$30,$A38,E$6),NA())) ->  | F38: =IF(B38="",NA(),IFERROR(INDEX('Financial Data Input'!$B$6:$I$30,$A38,F$6),NA())) ->  | G38: =IF(B38="",NA(),IFERROR(INDEX('Financial Data Input'!$B$6:$I$30,$A38,G$6),NA())) -> 
A39: =ROWS($B$15:B39) -> 25 | B39: =IF('Financial Data Input'!B30=0,"",'Financial Data Input'!B30) ->  | C39: =IF(B39="",NA(),IFERROR(INDEX('Financial Data Input'!$B$6:$I$30,$A39,C$6),NA())) ->  | D39: =IF(B39="",NA(),IFERROR(INDEX('Financial Data Input'!$B$6:$I$30,$A39,D$6),NA())) ->  | E39: =IF(B39="",NA(),IFERROR(INDEX('Financial Data Input'!$B$6:$I$30,$A39,E$6),NA())) ->  | F39: =IF(B39="",NA(),IFERROR(INDEX('Financial Data Input'!$B$6:$I$30,$A39,F$6),NA())) ->  | G39: =IF(B39="",NA(),IFERROR(INDEX('Financial Data Input'!$B$6:$I$30,$A39,G$6),NA())) -> 
